bitfinex-derivatives/quotes_SOLF0:USTF0_20250320
["timestamp","ask_amount","ask_price","bid_price","bid_amount"]
[1742438768404,35.34254511,134.12,134.08,26.7]
[1742438768707,31.09544511,134.12,134.11,10.82943332]
[1742438769106,31.09544511,134.12,134.11,18.28433332]
[1742438769307,31.09544511,134.12,134.11,44.98433332]
[1742438769707,0.05192765,134.13,134.11,44.98433332]
[1742438770401,0.05192765,134.13,134.11,37.52943332]
[1742438770705,114.01663209,134.14,134.11,37.52943332]
[1742438770898,114.01663209,134.14,134.13,10.82943332]
[1742438771102,124.38178047,134.15,134.13,10.82943332]
[1742438771302,124.38178047,134.15,134.14,26.7]
[1742438772009,124.38178047,134.15,134.13,0.05270501]
[1742438774008,131.83488047,134.15,134.13,0.05270501]
[1742438774202,7.4531,134.15,134.13,0.05270501]
[1742438775204,20.32579494,134.16,134.13,0.05270501]
[1742438775906,9.49636162,134.16,134.13,0.05270501]
[1742438776109,2.04416162,134.16,134.13,0.05270501]
[1742438776806,9.49626162,134.16,134.13,0.05270501]
[1742438777303,12.87359494,134.16,134.13,0.05270501]
[1742438777499,7.4527,134.15,134.13,0.05270501]
[1742438778907,20.32589494,134.16,134.13,0.05270501]
[1742438779107,9.49646162,134.16,134.13,0.05270501]
[1742438781213,2.04416162,134.16,134.13,7.50640501]
[1742438781402,0.05036162,134.16,134.14,10.82943332]
[1742438781606,0.05036162,134.16,134.15,26.68]
[1742438782506,0.05036162,134.16,134.15,37.50943332]
[1742438784515,0.05036162,134.16,134.15,44.96213332]
[1742438785018,0.05036162,134.16,134.15,37.50943332]
[1742438785617,0.05036162,134.16,134.15,44.96213332]
[1742438789920,1.9805,134.23,134.21,7.4492]
[1742438790117,1.9805,134.23,134.21,34.1292]
[1742438790317,1.9805,134.23,134.21,26.68]
[1742438791118,2.03306363,134.23,134.21,26.7270302]
[1742438792815,10.82943332,134.22,134.21,0.0470302]
[1742438793015,10.82943332,134.22,134.2,26.68]
[1742438793423,7.4493,134.21,134.2,26.68]
[1742438794521,18.27873332,134.21,134.2,26.68]
[1742438794721,20.32833332,134.21,134.2,20.2689]
[1742438795023,7.4499,134.2,134.19,0.05315648]
[1742438795516,20.32863332,134.21,134.19,0.05315648]
[1742438796927,0.05256363,134.23,134.2,37.54943332]
[1742438797117,0.05256363,134.23,134.22,10.82943332]
[1742438797518,0.05256363,134.23,134.21,10.82943332]
[1742438798221,0.05256363,134.23,134.21,18.27843332]
[1742438798823,0.05256363,134.23,134.21,7.449]
[1742438800123,10.88199695,134.23,134.19,26.75315648]
[1742438800524,10.88199695,134.23,134.19,34.20325648]
[1742438801524,18.33059695,134.23,134.19,34.20325648]
[1742438802221,7.4491,134.22,134.19,0.05315648]
[1742438802422,10.82943332,134.21,134.19,0.05315648]
[1742438802920,10.82943332,134.21,134.19,7.50325648]
[1742438803121,10.82943332,134.21,134.19,0.05315648]
[1742438804221,12.92583332,134.21,134.19,0.05315648]
[1742438804414,20.37533332,134.21,134.19,0.05315648]
[1742438804613,12.92583332,134.21,134.19,0.05315648]
[1742438805324,7.4499,134.2,134.19,0.05315648]
[1742438806726,18.27933332,134.2,134.19,0.05315648]
[1742438807525,10.82943332,134.17,134.15,26.68]
[1742438807829,10.82943332,134.17,134.13,34.1335]
[1742438808618,0.05081427,134.16,134.14,0.05495757]
[1742438809827,7.50331427,134.16,134.14,0.05495757]
[1742438811333,0.05081427,134.16,134.14,7.50815757]
[1742438813130,0.05081427,134.16,134.14,0.05495757]
[1742438817735,7.50291427,134.16,134.14,0.05495757]
[1742438817938,0.05081427,134.16,134.14,0.05495757]
[1742438819239,10.82943332,134.15,134.14,0.05495757]
[1742438819442,7.4538,134.13,134.09,10.82943332]
[1742438819740,7.4538,134.13,134.09,44.96503332]
[1742438819940,7.4535,134.14,134.09,37.50943332]
[1742438820240,7.4535,134.14,134.1,7.4551]
[1742438820436,12.90603332,134.15,134.11,0.04702504]
[1742438820640,0.04727282,134.13,134.11,0.04702504]
[1742438820840,0.04727282,134.13,134.11,7.50152504]
[1742438821036,0.04727282,134.13,134.11,10.87645836]
[1742438821637,0.04727282,134.13,134.12,26.68]
[1742438822933,0.04727282,134.13,134.11,18.33125836]
[1742438823234,0.04727282,134.13,134.11,45.01125836]
[1742438823434,0.04727282,134.13,134.12,7.4543]
[1742438825142,18.27993332,134.19,134.14,10.82943332]
[1742438825342,10.82943332,134.19,134.14,37.50943332]
[1742438825540,10.82943332,134.19,134.16,7.4517]
[1742438826244,10.87875819,134.19,134.16,7.50404137]
[1742438827337,10.87875819,134.19,134.17,7.4514]
[1742438828342,0.04932487,134.19,134.18,7.451]
[1742438830846,0.04932487,134.19,134.18,18.28043332]
[1742438831447,14.82983332,134.27,134.18,10.82943332]
[1742438831647,14.82983332,134.27,134.21,10.82943332]
[1742438831850,22.27593332,134.27,134.21,37.50943332]
[1742438832451,10.82943332,134.25,134.23,7.4478]
[1742438832653,10.87829731,134.25,134.23,7.49986363]
[1742438832957,0.04886399,134.25,134.24,7.4477]
[1742438833161,0.04886399,134.25,134.23,0.05206363]
[1742438833857,0.04886399,134.25,134.24,26.78]
[1742438837863,0.04886399,134.25,134.24,34.2277]
[1742438840365,2.0968,134.33,134.24,34.22]
[1742438840571,2.0968,134.33,134.29,10.82943332]
[1742438840869,10.82943332,134.3,134.28,27.34]
[1742438841069,10.82943332,134.3,134.26,27.42]
[1742438841266,18.27393332,134.3,134.26,27.42]
[1742438841470,0.0544329,134.29,134.27,0.05559037]
[1742438841769,10.82943332,134.28,134.27,0.05559037]
[1742438842165,18.27483332,134.28,134.27,0.05559037]
[1742438843171,7.4454,134.28,134.27,0.05559037]
[1742438847269,0.0544329,134.29,134.27,34.88149037]
[1742438850976,0.0544329,134.29,134.28,7.4454]
[1742438851872,0.0544329,134.29,134.27,34.88139037]
[1742438852075,0.0544329,134.29,134.27,27.43559037]
[1742438852576,0.0544329,134.29,134.27,34.88149037]
[1742438853379,0.0544329,134.29,134.23,27.32]
[1742438853977,0.0544329,134.29,134.24,7.4473]
[1742438854670,0.0544329,134.29,134.25,0.0548594]
[1742438854876,7.4993329,134.29,134.25,0.0548594]
[1742438855175,0.0544329,134.29,134.25,0.0548594]
[1742438855380,0.0544329,134.29,134.25,7.5019594]
[1742438856282,0.0544329,134.29,134.25,0.0548594]
[1742438857083,0.0544329,134.29,134.25,7.5018594]
[1742438857376,7.4993329,134.29,134.25,0.0548594]
[1742438857580,16.77447389,134.28,134.25,0.0548594]
[1742438858679,24.22007389,134.28,134.25,0.0548594]
[1742438858876,2.0622,134.27,134.25,0.0548594]
[1742438860881,16.77447389,134.26,134.19,257.08]
[1742438861086,16.77447389,134.26,134.2,27.28]
[1742438862281,0.05439291,134.24,134.23,7.4479]
[1742438867286,10.7959446,134.24,134.23,7.4479]
[1742438867989,37.9959446,134.24,134.22,0.05254543]
[1742438868182,10.74155169,134.23,134.22,0.05254543]
[1742438868977,10.74155169,134.23,134.2,7.4497]
[1742438869289,34.70249291,134.24,134.2,7.4497]
[1742438869290,10.74155169,134.21,134.2,7.4497]
[1742438870591,10.74155169,134.23,134.21,7.449]
[1742438871689,37.9959446,134.24,134.22,7.4488]
[1742438873289,37.9959446,134.24,134.21,7.4493]
[1742438874495,10.74155169,134.23,134.2,7.4496]
[1742438875093,10.74155169,134.23,134.19,0.05074733]
[1742438876195,10.74155169,134.23,134.2,7.4498]
[1742438878496,18.18985169,134.23,134.2,7.4498]
[1742438878688,18.18985169,134.23,134.19,18.24249902]
[1742438878995,18.18985169,134.23,134.19,7.50094733]
[1742438879393,7.4488,134.22,134.19,7.50094733]
[1742438879692,10.74155169,134.22,134.19,0.05074733]
[1742438879991,10.74155169,134.2,134.19,0.05074733]
[1742438880590,27.23539066,134.21,134.19,0.05074733]
[1742438881095,34.68469066,134.21,134.19,0.05074733]
[1742438881795,18.19145169,134.2,134.19,0.05074733]
[1742438882090,10.74155169,134.2,134.15,27.16]
[1742438882690,10.74155169,134.18,134.14,10.74155169]
[1742438882891,7.4519,134.17,134.14,10.74155169]
[1742438883187,37.92155169,134.18,134.14,10.74155169]
[1742438883387,0.05239638,134.17,134.14,10.79064075]
[1742438883584,0.05239638,134.17,134.15,7.4525]
[1742438884192,0.05239638,134.17,134.16,7.4521]
[1742438885696,0.05239638,134.17,134.15,7.4525]
[1742438886994,0.05239638,134.17,134.14,0.04908906]
[1742438888090,7.50429638,134.17,134.14,0.04908906]
[1742438888996,7.4524,134.16,134.14,0.04908906]
[1742438889596,7.4527,134.15,134.14,0.04908906]
[1742438894394,18.19385169,134.16,134.14,0.04908906]
[1742438894899,10.74155169,134.16,134.14,0.04908906]
[1742438895790,7.4527,134.15,134.14,0.04908906]
[1742438895991,10.74155169,134.15,134.07,27.1]
[1742438896195,10.74155169,134.12,134.08,7.4562]
[1742438896601,10.74155169,134.13,134.08,7.4562]
[1742438896899,18.19585169,134.13,134.09,7.4559]
[1742438897198,0.04726993,134.12,134.1,0.04786263]
[1742438897597,7.50186993,134.12,134.1,0.04786263]
[1742438898093,0.04726993,134.12,134.1,0.04786263]
[1742438899297,10.78882162,134.12,134.1,0.04786263]
[1742438900000,0.04726993,134.12,134.1,0.04786263]
[1742438901205,0.04726993,134.12,134.11,10.74155169]
[1742438901800,0.04726993,134.12,134.11,18.19645169]
[1742438904008,320.0,134.17,134.11,10.74155169]
[1742438904306,320.0,134.17,134.13,10.74155169]
[1742438904506,7.4524,134.16,134.13,10.74155169]
[1742438905009,10.74155169,134.15,134.12,27.02]
[1742438905305,10.74155169,134.15,134.13,0.04915516]
[1742438905708,7.4537,134.14,134.13,0.04915516]
[1742438908909,18.19525169,134.14,134.13,0.04915516]
[1742438915014,7.4552,134.11,134.08,26.94]
[1742438915210,18.19675169,134.11,134.08,26.94]
[1742438915419,10.74155169,134.11,134.06,10.74155169]
[1742438915615,10.74155169,134.11,134.08,26.92]
[1742438915818,7.4557,134.1,134.08,26.92]
[1742438916320,7.4557,134.1,134.08,26.97102113]
[1742438916321,7.50750053,134.1,134.08,26.97102113]
[1742438917715,7.50750053,134.1,134.08,0.05102113]
[1742438917921,7.456,134.09,134.08,0.05102113]
[1742438921028,0.05180053,134.1,134.08,0.05102113]
[1742438921426,0.05180053,134.1,134.08,7.50732113]
[1742438922228,0.05180053,134.1,134.08,0.05102113]
[1742438923325,7.456,134.09,134.08,0.05102113]
[1742438927522,7.50740053,134.1,134.08,0.05102113]
[1742438929424,0.05180053,134.1,134.08,0.05102113]
[1742438930233,7.50730053,134.1,134.08,0.05102113]
[1742438930426,0.05180053,134.1,134.08,7.50752113]
[1742438930733,7.50730053,134.1,134.08,0.05102113]
[1742438931334,0.05180053,134.1,134.08,0.05102113]
[1742438932032,7.456,134.09,134.08,0.05102113]
[1742438932332,7.50750053,134.1,134.08,0.05102113]
[1742438933136,7.456,134.09,134.08,0.05102113]
[1742438935133,18.19755169,134.09,134.08,0.05102113]
[1742438940640,7.456,134.09,134.08,0.05102113]
[1742438940940,18.19755169,134.09,134.08,0.05102113]
[1742438956250,10.79335222,134.1,134.08,0.05102113]
[1742438956454,0.05180053,134.1,134.08,0.05102113]
[1742438957255,7.50760053,134.1,134.08,0.05102113]
[1742438960256,7.456,134.09,134.08,0.05102113]
[1742438963455,18.19755169,134.09,134.08,0.05102113]
[1742438971765,0.05180053,134.1,134.08,0.05102113]
[1742438971959,0.05180053,134.1,134.08,10.79257282]
[1742438972365,0.05180053,134.1,134.09,26.72]
[1742438973065,0.05180053,134.1,134.09,34.176]
[1742438977370,0.05180053,134.1,134.09,44.91755169]
[1742438978868,0.05180053,134.1,134.09,34.176]
[1742438979370,0.05180053,134.1,134.09,26.72]
[1742438982476,7.50720053,134.1,134.09,26.72]
[1742438982679,10.79335222,134.1,134.08,0.05102113]
[1742438982878,10.74155169,134.09,134.08,0.05102113]
[1742438983485,18.19755169,134.09,134.08,0.05102113]
[1742438989190,7.458,134.06,134.04,26.72]
[1742438990192,7.4572,134.07,134.04,34.1787]
[1742438990387,0.05594075,134.06,134.04,34.22935516]
[1742438990691,7.51374075,134.06,134.04,26.77065516]
[1742438990889,0.05594075,134.06,134.04,26.77065516]
[1742438991193,0.05594075,134.06,134.04,37.51220685]
[1742438991387,0.05594075,134.06,134.05,18.19975169]
[1742438992184,0.05594075,134.06,134.05,7.4582]
[1742438992594,0.05594075,134.06,134.04,44.97090685]
[1742438993485,0.05594075,134.06,134.04,18.25090685]
[1742438993693,0.05594075,134.06,134.05,26.72]
[1742438999697,7.51364075,134.06,134.05,26.72]
[1742439000391,7.51364075,134.06,134.04,0.05065516]
[1742439000693,18.19975169,134.05,134.04,0.05065516]
[1742439000890,10.74155169,134.05,133.99,10.74155169]
[1742439001092,7.4599,134.02,134.01,26.72]
[1742439001495,7.4599,134.02,133.99,10.74155169]
[1742439001698,7.4607,134.01,134.0,26.72]
[1742439002399,7.4607,134.01,133.99,0.05095593]
[1742439002596,7.461,134.0,133.99,26.77095593]
[1742439002795,10.78967985,134.02,133.99,26.77095593]
[1742439003203,0.04812816,134.02,133.99,26.77095593]
[1742439003696,0.04812816,134.02,134.0,7.4607]
[1742439004699,0.04812816,134.02,134.0,34.1807]
[1742439005701,7.50812816,134.02,134.0,26.72]
[1742439005900,0.04812816,134.02,133.99,0.05095593]
[1742439006097,7.50842816,134.02,133.99,0.05095593]
[1742439008103,7.50842816,134.02,133.99,7.51225593]
[1742439010406,7.50842816,134.02,133.99,0.05095593]
[1742439010605,7.4605,134.01,133.99,0.05095593]
[1742439010804,18.20205169,134.01,133.99,0.05095593]
[1742439016815,18.20255169,134.0,133.99,0.05095593]
[1742439019017,10.74155169,134.0,133.99,0.05095593]
[1742439023621,18.20255169,134.0,133.99,0.05095593]
[1742439024719,18.20255169,134.0,133.96,7.4631]
[1742439024919,18.20255169,134.0,133.96,34.1831]
[1742439025720,7.4617,133.99,133.96,34.1831]
[1742439025925,18.20325169,133.99,133.97,0.04997973]
[1742439026129,18.25565018,133.99,133.97,0.04997973]
[1742439026424,10.79395018,133.99,133.97,7.51257973]
[1742439027025,10.79395018,133.99,133.97,0.04997973]
[1742439027429,7.4621,133.98,133.97,0.04997973]
[1742439030828,18.25575018,133.99,133.97,0.04997973]
[1742439032627,7.4621,133.98,133.97,0.04997973]
[1742439040437,0.05239849,133.99,133.97,0.04997973]
[1742439041139,0.05239849,133.99,133.97,7.51237973]
[1742439041439,0.05239849,133.99,133.97,0.04997973]
[1742439042539,7.4621,133.98,133.97,0.04997973]
[1742439044242,7.51419849,133.99,133.97,0.04997973]
[1742439045648,0.05239849,133.99,133.97,7.51257973]
[1742439045944,10.79395018,133.99,133.97,7.51257973]
[1742439046544,18.25555018,133.99,133.97,0.04997973]
[1742439047649,7.4621,133.98,133.97,0.04997973]
[1742439049245,18.20365169,133.98,133.97,0.04997973]
[1742439055653,0.05239849,133.99,133.97,0.04997973]
[1742439055850,10.79395018,133.99,133.97,0.04997973]
[1742439057055,18.25565018,133.99,133.97,0.04997973]
[1742439058556,18.25565018,133.99,133.98,26.72]
[1742439060051,0.05239849,133.99,133.98,26.72]
[1742439060458,0.05239849,133.99,133.98,34.1821]
[1742439064252,0.05239849,133.99,133.98,26.72]
[1742439068063,0.05239849,133.99,133.98,34.1821]
[1742439068262,527.68078163,134.12,133.98,34.18]
[1742439068466,7.4569,134.08,134.04,18.20005169]
[1742439068658,10.74155169,134.08,134.05,26.72]
[1742439068857,10.74155169,134.07,134.05,26.72]
[1742439069060,10.74155169,134.06,134.03,26.72]
[1742439069364,0.04742812,134.06,134.03,26.76971539]
[1742439069659,0.04742812,134.06,134.03,37.51126708]
[1742439073766,7.50512812,134.06,134.03,37.51126708]
[1742439075270,7.50512812,134.06,134.03,26.76971539]
[1742439076174,7.4582,134.05,134.03,26.76971539]
[1742439076768,7.4582,134.05,134.03,0.04971539]
[1742439076968,7.4582,134.05,134.04,26.7]
[1742439077371,18.19975169,134.05,134.04,26.7]
[1742439078270,7.50522812,134.06,134.04,26.7]
[1742439078869,0.04742812,134.06,134.04,37.44155169]
[1742439079072,10.78897981,134.06,134.04,26.7]
[1742439079472,7.4582,134.05,134.04,26.7]
[1742439081573,7.50532812,134.06,134.04,26.7]
[1742439081776,0.04742812,134.06,134.04,26.7]
[1742439081969,0.04742812,134.06,134.04,37.44155169]
[1742439083367,0.04742812,134.06,134.04,44.90005169]
[1742439083973,0.04742812,134.06,134.05,7.4582]
[1742439084577,0.04742812,134.06,134.04,44.90005169]
[1742439085377,0.04742812,134.06,134.04,37.44155169]
[1742439085574,0.04742812,134.06,134.04,26.7]
[1742439086478,7.50512812,134.06,134.04,26.7]
[1742439086678,0.04742812,134.06,134.04,26.7]
[1742439087379,7.4582,134.05,134.04,26.7]
[1742439088179,7.4588,134.04,134.03,26.74971539]
[1742439088774,7.4585,134.05,134.03,26.74971539]
[1742439090082,0.04742812,134.06,134.03,37.49126708]
[1742439090686,0.04742812,134.06,134.04,7.4588]
[1742439092086,0.04742812,134.06,134.03,37.49126708]
[1742439092688,0.04742812,134.06,134.05,7.4582]
[1742439094082,0.04742812,134.06,134.05,18.19975169]
[1742439096785,0.04742812,134.06,134.05,10.74155169]
[1742439097590,0.04742812,134.06,134.04,18.20015169]
[1742439098591,0.04742812,134.06,134.04,10.74155169]
[1742439099486,0.04742812,134.06,134.04,18.20025169]
[1742439100492,7.50532812,134.06,134.04,10.74155169]
[1742439100795,0.04742812,134.06,134.04,10.74155169]
[1742439102093,7.50522812,134.06,134.04,10.74155169]
[1742439102693,7.50522812,134.06,134.03,34.20871539]
[1742439102694,7.4583,134.05,134.03,0.04971539]
[1742439102894,0.04742812,134.06,134.04,26.7]
[1742439103596,7.50542812,134.06,134.04,26.7]
[1742439104989,7.4582,134.05,134.04,26.7]
[1742439105186,0.04742812,134.06,134.04,26.7]
[1742439106892,7.4582,134.05,134.04,26.7]
[1742439107092,10.78897981,134.06,134.03,0.04971539]
[1742439107490,7.4586,134.05,134.03,0.04971539]
[1742439108402,7.4586,134.05,134.03,26.74971539]
[1742439108995,7.4588,134.04,134.03,26.74971539]
[1742439111898,18.20035169,134.04,134.03,26.74971539]
[1742439112098,18.20035169,134.04,134.03,0.04971539]
[1742439114202,7.4588,134.04,134.03,0.04971539]
[1742439115201,18.19985169,134.05,134.03,0.04971539]
[1742439115804,7.4583,134.05,134.03,0.04971539]
[1742439117203,7.4588,134.04,134.03,0.04971539]
[1742439119304,7.4585,134.05,134.03,0.04971539]
[1742439119504,10.78897981,134.06,134.03,0.04971539]
[1742439119696,0.04742812,134.06,134.03,10.79126708]
[1742439120004,0.04742812,134.06,134.04,34.1583]
[1742439120205,0.04742812,134.06,134.04,26.7]
[1742439120407,0.04742812,134.06,134.05,7.4582]
[1742439120705,0.04742812,134.06,134.04,26.7]
[1742439120903,0.04742812,134.06,134.04,34.1588]
[1742439122205,0.04742812,134.06,134.05,7.4582]
[1742439122599,0.04742812,134.06,134.04,26.7]
[1742439123000,0.04742812,134.06,134.04,34.1584]
[1742439124006,0.04742812,134.06,134.04,44.89995169]
[1742439124304,0.04742812,134.06,134.05,7.4582]
[1742439124698,590.09515169,134.11,134.05,10.74155169]
[1742439124903,332.75515169,134.11,134.07,7.457]
[1742439125101,20.21045169,134.11,134.08,26.68]
[1742439125300,10.74155169,134.13,134.08,44.87775169]
[1742439125802,7.455,134.11,134.09,0.05488383]
[1742439127606,0.05104356,134.12,134.09,0.05488383]
[1742439127805,0.05104356,134.12,134.09,10.79643552]
[1742439128200,7.50544356,134.12,134.09,10.79643552]
[1742439129307,7.455,134.11,134.09,10.79643552]
[1742439129506,7.455,134.11,134.09,0.05488383]
[1742439129701,0.05104356,134.12,134.09,0.05488383]
[1742439129900,7.50574356,134.12,134.09,0.05488383]
[1742439131101,0.05104356,134.12,134.09,7.51078383]
[1742439131300,0.05104356,134.12,134.09,18.25233552]
[1742439131698,0.05104356,134.12,134.1,7.4554]
[1742439132007,0.05104356,134.12,134.11,26.68]
[1742439134410,7.50534356,134.12,134.11,26.68]
[1742439135108,0.05104356,134.12,134.11,26.68]
[1742439148428,10.74155169,134.2,134.11,302.10155169]
[1742439148621,10.74155169,134.2,134.16,10.74155169]
[1742439148818,10.74155169,134.2,134.17,26.68]
[1742439149026,10.74155169,134.19,134.17,26.68]
[1742439149417,10.74155169,134.19,134.17,26.73181857]
[1742439149418,10.7908386,134.19,134.17,26.73181857]
[1742439153426,10.74155169,134.18,134.17,0.05181857]
[1742439153933,18.19255169,134.18,134.17,0.05181857]
[1742439156037,7.4515,134.17,134.16,26.66]
[1742439156227,10.74155169,134.17,134.12,10.74155169]
[1742439156427,10.74155169,134.16,134.11,267.96155169]
[1742439156628,18.19395169,134.16,134.12,34.114]
[1742439157229,0.05316854,134.15,134.13,0.0547943]
[1742439158339,0.05316854,134.15,134.13,7.5081943]
[1742439158631,0.05316854,134.15,134.13,26.7147943]
[1742439159227,0.05316854,134.15,134.13,37.45634599]
[1742439159432,0.05316854,134.15,134.14,18.19475169]
[1742439160634,0.05316854,134.15,134.14,10.74155169]
[1742439160843,0.05316854,134.15,134.13,37.45634599]
[1742439161338,0.05316854,134.15,134.13,26.7147943]
[1742439162435,7.4532,134.14,134.13,26.7147943]
[1742439162634,7.4532,134.14,134.13,0.0547943]
[1742439166043,10.79472023,134.15,134.13,0.0547943]
[1742439167446,7.4532,134.14,134.13,0.0547943]
[1742439171843,7.50596854,134.15,134.13,0.0547943]
[1742439173052,0.05316854,134.15,134.14,7.4532]
[1742439173246,0.05316854,134.15,134.13,26.7147943]
[1742439173550,0.05316854,134.15,134.13,34.1682943]
[1742439175350,0.05316854,134.15,134.14,7.4532]
[1742439176647,0.05316854,134.15,134.13,34.1683943]
[1742439178848,0.05316854,134.15,134.13,26.7147943]
[1742439181655,0.05316854,134.15,134.13,37.45634599]
[1742439186164,7.50586854,134.15,134.13,37.45634599]
[1742439186460,0.05316854,134.15,134.13,37.45634599]
[1742439186960,7.4532,134.14,134.13,37.45634599]
[1742439188158,7.50606854,134.15,134.13,37.45634599]
[1742439192558,0.05316854,134.15,134.13,37.45634599]
[1742439193464,0.05316854,134.15,134.14,7.4532]
[1742439193659,0.05316854,134.15,134.14,18.19475169]
[1742439194064,0.05316854,134.15,134.14,10.74155169]
[1742439195060,0.05316854,134.15,134.13,37.45634599]
[1742439195259,0.05316854,134.15,134.14,26.64]
[1742439196462,7.50586854,134.15,134.14,26.64]
[1742439198163,7.4532,134.14,134.13,0.0547943]
[1742439198365,7.4532,134.14,134.13,26.6947943]
[1742439205069,7.4532,134.14,134.13,0.0547943]
[1742439205263,7.4532,134.14,134.13,26.6947943]
[1742439212072,7.4532,134.14,134.13,0.0547943]
[1742439213664,18.19475169,134.14,134.13,0.0547943]
[1742439214067,7.4549,134.11,134.1,26.64]
[1742439214368,10.74155169,134.13,134.08,257.14]
[1742439214569,10.74155169,134.12,134.09,26.64]
[1742439214875,10.74155169,134.11,134.09,26.64]
[1742439215173,7.4554,134.1,134.09,26.69733927]
[1742439215676,7.4554,134.1,134.09,0.05733927]
[1742439219574,0.04918909,134.11,134.09,0.05733927]
[1742439219774,0.04918909,134.11,134.1,10.74155169]
[1742439219976,0.04918909,134.11,134.1,18.19695169]
[1742439220371,0.04918909,134.11,134.1,10.74155169]
[1742439234184,12.82425169,134.18,134.1,10.74155169]
[1742439234384,12.82425169,134.18,134.14,10.74155169]
[1742439234586,7.4522,134.16,134.15,26.64]
[1742439234782,12.82425169,134.18,134.15,26.64]
[1742439234978,10.74155169,134.16,134.13,26.64]
[1742439235185,18.19365169,134.16,134.15,0.0496077]
[1742439235387,10.74155169,134.16,134.13,26.64]
[1742439235888,7.4532,134.14,134.13,26.64]
[1742439238882,7.50189136,134.15,134.13,26.64]
[1742439239088,0.04889136,134.15,134.13,37.38155169]
[1742439240589,7.4532,134.14,134.13,37.38155169]
[1742439242898,7.50169136,134.15,134.13,37.38155169]
[1742439243394,0.04889136,134.15,134.13,37.38155169]
[1742439244582,0.04889136,134.15,134.13,26.64]
[1742439244788,7.50159136,134.15,134.14,10.74155169]
[1742439244989,49.03766845,134.25,134.14,10.74155169]
[1742439245189,2.0531,134.22,134.17,10.74155169]
[1742439245490,7.4508,134.19,134.18,26.64]
[1742439245693,10.74155169,134.19,134.13,26.64]
[1742439245895,7.4532,134.14,134.13,26.64]
[1742439256306,7.4538,134.13,134.12,0.04750687]
[1742439257296,0.05166104,134.15,134.12,0.04750687]
[1742439257297,0.05166104,134.15,134.12,10.78905856]
[1742439257500,0.05166104,134.15,134.13,10.74155169]
[1742439257701,0.05166104,134.15,134.14,37.38155169]
[1742439266615,257.12,134.28,134.14,44.84155169]
[1742439266813,16.68575169,134.26,134.2,10.74155169]
[1742439267013,16.68575169,134.26,134.21,26.64]
[1742439267814,7.4487,134.23,134.22,0.05259862]
[1742439271220,7.4479,134.24,134.22,0.05259862]
[1742439271421,7.4479,134.24,134.22,10.79415031]
[1742439272823,7.4482,134.23,134.22,10.79415031]
[1742439273020,0.05195671,134.25,134.22,10.79415031]
[1742439273826,7.448,134.24,134.22,10.79415031]
[1742439274419,7.4482,134.23,134.22,0.05259862]
[1742439276629,7.4479,134.24,134.22,0.05259862]
[1742439279328,7.4482,134.23,134.22,0.05259862]
[1742439280720,7.4478,134.24,134.22,0.05259862]
[1742439282128,7.4482,134.23,134.22,0.05259862]
[1742439282531,18.18975169,134.23,134.22,0.05259862]
[1742439283836,0.05195671,134.25,134.22,26.67259862]
[1742439284033,0.05195671,134.25,134.22,37.41415031]
[1742439284631,0.05195671,134.25,134.22,44.86265031]
[1742439284827,7.49905671,134.25,134.22,37.41415031]
[1742439285438,0.05195671,134.25,134.22,26.67259862]
[1742439287337,7.4481,134.24,134.22,26.67259862]
[1742439288133,7.49925671,134.25,134.22,26.67259862]
[1742439289138,7.4478,134.24,134.22,26.67259862]
[1742439292840,7.4482,134.23,134.22,26.67259862]
[1742439293342,7.4478,134.24,134.22,26.67259862]
[1742439298045,7.4482,134.23,134.22,26.67259862]
[1742439299742,7.4478,134.24,134.22,26.67259862]
[1742439300843,7.4482,134.23,134.22,26.67259862]
[1742439302249,7.4479,134.24,134.22,26.67259862]
[1742439303451,7.4482,134.23,134.22,26.67259862]
[1742439303651,0.05195671,134.25,134.22,26.67259862]
[1742439303852,7.4479,134.24,134.22,26.67259862]
[1742439304752,7.4482,134.23,134.22,0.05259862]
[1742439306452,7.49935671,134.25,134.22,10.79415031]
[1742439306652,7.49935671,134.25,134.23,26.6]
[1742439306848,0.05195671,134.25,134.23,26.6]
[1742439307553,7.49945671,134.25,134.23,26.6]
[1742439307753,0.05195671,134.25,134.23,26.6]
[1742439309150,4.218,134.32,134.24,10.74155169]
[1742439309357,10.74155169,134.31,134.26,10.74155169]
[1742439309557,7.4472,134.25,134.21,256.98]
[1742439309757,7.4472,134.25,134.22,37.34155169]
[1742439310056,10.74155169,134.28,134.22,37.34155169]
[1742439310256,0.04925264,134.25,134.22,37.39583867]
[1742439310859,7.4477,134.24,134.22,37.39583867]
[1742439311055,0.04925264,134.25,134.22,37.39583867]
[1742439311254,0.04925264,134.25,134.24,10.74155169]